fUST/lending_fUST_20250622
["ID","MTS","AMOUNT","RATE_DAILY","PERIOD"]
[366883519,1750548640265,-460.0,0.00022464,2]
[366883520,1750548640277,-230.10342898,0.0002252,2]
[366883522,1750548640290,-160.0,0.00022521,2]
[366883525,1750548640300,-160.0,0.00022521,2]
[366883526,1750548640309,-160.0,0.00022521,2]
[366883527,1750548640321,-160.0,0.00022521,2]
[366883528,1750548640330,-160.0,0.00022521,2]
[366883529,1750548640339,-460.0,0.00022589,2]
[366883530,1750548640351,-2239.43963931,0.00022624,7]
[366883531,1750548640361,-2239.43963931,0.00022797,7]
[366883532,1750548640371,-2239.43963931,0.00022969,8]
[366883533,1750548640381,-6028.42951396,0.00023,3]
[366883534,1750548640391,-170.0,0.00023014,7]
[366883535,1750548640400,-2239.43963931,0.00023141,8]
[366883536,1750548640409,-420.0,0.00023282,2]
[366883537,1750548640418,-420.0,0.00023284,2]
[366883539,1750548640428,-250.0,0.000233,30]
[366883540,1750548640437,-1928.44,0.00023312,3]
[366883542,1750548640446,-964.22,0.00023312,3]
[366883544,1750548640456,-482.1,0.00023312,3]
[366883546,1750548640465,-2239.43963931,0.00023314,9]
[366883548,1750548640475,-158.457743,0.00023388,4]
[366883549,1750548640485,-2239.43963931,0.00023486,9]
[366883551,1750548640495,-160.0,0.00023496,2]
[366883553,1750548640505,-213.55395994,0.00023496,2]
[366883555,1750548640514,-160.0,0.00023496,2]
[366883558,1750548640524,-160.0,0.00023496,2]
[366883559,1750548640538,-836.41202323,0.00023496,2]
[366883561,1750548640548,-52529.93229867,0.00023498,2]
[366883563,1750548640557,-460.0,0.00023499,2]
[366883565,1750548640567,-460.0,0.00023499,2]
[366883567,1750548640576,-306.0,0.000235,2]
[366883569,1750548640585,-460.0,0.00023502,2]
[366883572,1750548640595,-433.52729192,0.00023503,2]
[366883574,1750548640605,-491.1681693,0.00023503,2]
[366883575,1750548640614,-460.0,0.00023503,2]
[366883577,1750548640623,-417.78421591,0.00023503,2]
[366883579,1750548640634,-462.48138492,0.00023503,2]
[366883581,1750548640643,-471.06873862,0.00023503,2]
[366883583,1750548640653,-460.0,0.00023503,2]
[366883585,1750548640662,-460.0,0.00023503,2]
[366883587,1750548640672,-460.0,0.00023503,2]
[366883589,1750548640681,-1075.32,0.000236,7]
[366883591,1750548640691,-460.0,0.00023658,2]
[366883593,1750548640701,-460.0,0.00023658,2]
[366883595,1750548640710,-460.0,0.00023658,2]
[366883597,1750548640720,-460.0,0.00023658,2]
[366883599,1750548640730,-159.10408404,0.00023658,2]
[366883602,1750548640740,-2239.43963931,0.00023659,9]
[366883604,1750548640749,-460.0,0.00023699,2]
[366883605,1750548640758,-13904.09313977,0.000237,2]
[366883607,1750548640767,-5000.0,0.0002371,2]
[366883609,1750548640777,-207.4,0.0002371,2]
[366883611,1750548640790,-800.0,0.0002371,2]
[366883613,1750548640800,-300.0,0.0002371,2]
[366883615,1750548640809,-800.0,0.0002371,2]
[366883617,1750548640819,-300.0,0.0002371,2]
[366883620,1750548640830,-800.0,0.0002371,2]
[366883622,1750548640840,-300.0,0.0002371,2]
[366883624,1750548640850,-800.0,0.0002371,2]
[366883626,1750548640860,-300.0,0.0002371,2]
[366883628,1750548640870,-800.0,0.0002371,2]
[366883630,1750548640879,-300.0,0.0002371,2]
[366883632,1750548640889,-800.0,0.0002371,2]
[366883634,1750548640899,-800.0,0.0002371,2]
[366883636,1750548640908,-300.0,0.0002371,2]
[366883638,1750548640918,-300.0,0.0002371,2]
[366883640,1750548640927,-800.0,0.0002371,2]
[366883642,1750548640937,-300.0,0.0002371,2]
[366883644,1750548640946,-800.0,0.0002371,2]
[366883646,1750548640956,-300.0,0.0002371,2]
[366883647,1750548640965,-800.0,0.0002371,2]
[366883649,1750548640974,-800.0,0.0002371,2]
[366883651,1750548640983,-300.0,0.0002371,2]
[366883653,1750548640993,-800.0,0.0002371,2]
[366883656,1750548641003,-300.0,0.0002371,2]
[366883657,1750548641012,-800.0,0.0002371,2]
[366883660,1750548641022,-300.0,0.0002371,2]
[366883661,1750548641033,-800.0,0.0002371,2]
[366883664,1750548641043,-300.0,0.0002371,2]
[366883665,1750548641053,-800.0,0.0002371,2]
[366883667,1750548641062,-300.0,0.0002371,2]
[366883669,1750548641072,-300.0,0.0002371,2]
[366883671,1750548641081,-396.88900501,0.0002371,2]
[366883673,1750548641090,-175.00368416,0.00023743,2]
[366883675,1750548641099,-255.0,0.00023743,2]
[366883677,1750548641108,-153.34192971,0.00023743,2]
[366883679,1750548641118,-268.0,0.00023755,6]
[366883680,1750548641128,-500.0,0.00023775,2]
[366883681,1750548641137,-99972.9962734,0.000238,2]
[366883682,1750548641147,-30667.2785748,0.000238,5]
[366883683,1750548641157,-2239.43963931,0.00023831,10]
[366883684,1750548641167,-171.54598274,0.000239,2]
[366883685,1750548641176,-268.0,0.00023902,6]
[366883686,1750548641185,-158.457743,0.00023904,2]
[366883687,1750548641195,-268482.25571566,0.0002394,7]
[366883688,1750548641204,-460.0,0.00023944,2]
[366883689,1750548641213,-460.0,0.00023944,2]
[366883690,1750548641222,-9768.31548446,0.00023945,2]
[366883691,1750548641232,-460.0,0.00023969,2]
[366883692,1750548641241,-460.0,0.0002397,2]
[366883693,1750548641250,-460.0,0.0002397,2]
[366883694,1750548641261,-207.799167,0.00023971,2]
[366883695,1750548641271,-500.0,0.00023973,2]
[366883696,1750548641283,-500.0,0.00023973,2]
[366883697,1750548641292,-500.0,0.00023973,2]
[366883698,1750548641301,-500.0,0.00023973,2]
[366883699,1750548641309,-258.8294459,0.00023973,2]
[366883700,1750548641319,-500.0,0.00023973,2]
[366883701,1750548641329,-500.0,0.00023973,2]
[366883702,1750548641339,-503.41899336,0.00023973,2]
[366883703,1750548641350,-516.82066677,0.00023973,2]
[366883704,1750548641359,-500.0,0.00023973,2]
[366883705,1750548641368,-500.0,0.00023973,2]
[366883706,1750548641378,-506.87102913,0.00023973,2]
[366883707,1750548641387,-527.6,0.00023987,2]
[366883708,1750548641397,-460.0,0.00023987,2]
[366883709,1750548641406,-460.0,0.00023987,2]
[366883710,1750548641416,-460.0,0.00023988,2]
[366883711,1750548641425,-460.0,0.00023989,2]
[366883712,1750548641435,-460.0,0.00023989,2]
[366883713,1750548641444,-438.00847266,0.00023989,2]
[366883714,1750548641454,-460.0,0.00023989,2]
[366883715,1750548641463,-460.0,0.00023989,2]
[366883716,1750548641473,-460.0,0.00023989,2]
[366883717,1750548641482,-500.0,0.00023989,2]
[366883718,1750548641492,-460.0,0.00023989,2]
[366883719,1750548641501,-460.0,0.00023989,2]
[366883720,1750548641511,-433.05204463,0.00023989,2]
[366883721,1750548641521,-500.0,0.0002399,2]
[366883722,1750548641532,-500.0,0.0002399,2]
[366883723,1750548641541,-460.0,0.00023999,2]
[366883724,1750548641551,-19229.07462497,0.00024,2]
[366883725,1750548641561,-151.04116647,0.00024,2]
[366883726,1750548641572,-9683.95430417,0.00024,2]
[366883727,1750548641582,-10069.34537373,0.00024,2]
[366883728,1750548641592,-94544.10126187,0.00024,2]
[366883729,1750548641603,-451.86417882,0.00024,2]
[366883730,1750548641612,-158.0,0.00024,2]
[366883731,1750548641622,-30143.0,0.00024,2]
[366883732,1750548641631,-291.007449,0.00024,7]
[366883733,1750548641720,-151.0,0.00024,7]
[366883734,1750548641730,-2239.43963931,0.00024003,10]
[366883735,1750548641740,-297.67299732,0.00024045,2]
[366883736,1750548641749,-268.0,0.00024049,7]
[366883737,1750548641759,-15941.35855403,0.00024091,2]
[366883738,1750548641768,-448.74227579,0.00024166,2]
[366883739,1750548641778,-460.0,0.00024166,2]
[366883740,1750548641790,-460.0,0.00024166,2]
[366883741,1750548641800,-9768.31548442,0.00024166,2]
[366883742,1750548641809,-500.0,0.00024173,2]
[366883743,1750548641819,-500.0,0.00024173,2]
[366883744,1750548641828,-500.0,0.00024173,2]
[366883745,1750548641837,-381.15923323,0.00024173,2]
[366883746,1750548641847,-500.0,0.00024173,2]
[366883747,1750548641856,-441.22774082,0.00024173,2]
[366883748,1750548641866,-167.19677086,0.00024173,2]
[366883749,1750548641875,-500.38764386,0.00024173,2]
[366883750,1750548641885,-500.0,0.00024173,2]
[366883751,1750548641894,-500.0,0.00024173,2]
[366883752,1750548641903,-500.0,0.00024173,2]
[366883753,1750548641913,-500.0,0.00024173,2]
[366883754,1750548641923,-500.0,0.00024173,2]
[366883755,1750548641932,-500.0,0.00024173,2]
[366883756,1750548641942,-600.0,0.00024173,2]
[366883757,1750548641952,-150.91223692,0.00024173,2]
[366883758,1750548641961,-460.0,0.00024174,2]
[366883759,1750548641971,-460.0,0.00024174,2]
[366883760,1750548641980,-460.0,0.00024174,2]
[366883761,1750548641990,-460.0,0.00024174,2]
[366883762,1750548642000,-460.0,0.00024174,2]
[366883763,1750548642010,-460.0,0.00024174,2]
[366883764,1750548642019,-460.0,0.00024174,2]
[366883765,1750548642029,-460.0,0.00024175,2]
[366883766,1750548642041,-460.0,0.00024175,2]
[366883767,1750548642052,-199.17329302,0.00024175,2]
[366883768,1750548642062,-559.33892315,0.00024175,2]
[366883769,1750548642073,-445.07837436,0.00024175,2]
[366883770,1750548642083,-460.0,0.00024175,2]
[366883771,1750548642094,-460.0,0.00024175,2]
[366883772,1750548642105,-460.0,0.00024175,2]
[366883773,1750548642115,-460.0,0.00024175,2]
[366883774,1750548642125,-409.20762032,0.00024175,2]
[366883775,1750548642136,-460.0,0.00024175,2]
[366883776,1750548642147,-460.0,0.00024175,2]
[366883777,1750548642157,-460.0,0.00024175,2]
[366883778,1750548642167,-460.0,0.00024175,2]
[366883779,1750548642178,-460.0,0.00024175,2]
[366883780,1750548642188,-460.0,0.00024175,2]
[366883781,1750548642198,-446.29272819,0.00024175,2]
[366883782,1750548642207,-460.0,0.00024175,2]
[366883783,1750548642217,-460.0,0.00024175,2]
[366883784,1750548642227,-460.0,0.00024175,2]
[366883785,1750548642236,-500.0,0.00024175,2]
[366883786,1750548642246,-460.0,0.00024175,2]
[366883787,1750548642256,-460.0,0.00024175,2]
[366883788,1750548642266,-460.0,0.00024175,2]
[366883790,1750548642283,-469.80495774,0.00024175,2]
[366883791,1750548642295,-460.0,0.00024175,2]
[366883792,1750548642304,-460.0,0.00024175,2]
[366883793,1750548642313,-460.0,0.00024175,2]
[366883795,1750548642323,-460.0,0.00024175,2]
[366883797,1750548642332,-442.47016826,0.00024175,2]
[366883800,1750548642341,-460.0,0.00024175,2]
[366883801,1750548642353,-460.0,0.00024175,2]
[366883802,1750548642363,-460.0,0.00024175,2]
[366883803,1750548642373,-321.96523439,0.00024175,2]
[366883804,1750548642383,-460.0,0.00024175,2]
[366883805,1750548642393,-500.0,0.00024175,2]
[366883806,1750548642403,-460.0,0.00024175,2]
[366883807,1750548642413,-460.0,0.00024175,2]
[366883808,1750548642424,-460.0,0.00024175,2]
[366883809,1750548642434,-460.0,0.00024175,2]
[366883810,1750548642444,-460.0,0.00024175,2]
[366883811,1750548642453,-460.0,0.00024175,2]
[366883812,1750548642463,-460.0,0.00024175,2]
[366883813,1750548642472,-532.08,0.00024175,2]
[366883814,1750548642482,-521.89104088,0.00024175,2]
[366883815,1750548642492,-460.0,0.00024175,2]
[366883816,1750548642501,-460.0,0.00024175,2]
[366883817,1750548642511,-460.0,0.00024175,2]
[366883818,1750548642520,-460.0,0.00024175,2]
[366883819,1750548642533,-561.62760205,0.00024175,2]
[366883820,1750548642544,-460.0,0.00024175,2]
[366883821,1750548642554,-460.0,0.00024175,2]
[366883822,1750548642565,-460.0,0.00024175,2]
[366883823,1750548642575,-460.0,0.00024175,2]
[366883824,1750548642584,-460.0,0.00024175,2]
[366883825,1750548642594,-460.0,0.00024175,2]
[366883826,1750548642604,-460.0,0.00024175,2]
[366883827,1750548642614,-2239.43963931,0.00024176,10]
[366883828,1750548642624,-460.0,0.00024176,2]
[366883829,1750548642633,-565.0387119,0.00024176,2]
[366883830,1750548642643,-460.0,0.00024176,2]
[366883831,1750548642653,-460.0,0.00024176,2]
[366883832,1750548642663,-460.0,0.00024189,2]
[366883833,1750548642673,-460.0,0.00024189,2]
[366883834,1750548642683,-460.0,0.00024189,2]
[366883835,1750548642695,-460.0,0.00024189,2]
[366883836,1750548642704,-460.0,0.00024189,2]
[366883837,1750548642714,-153.84241964,0.0002419,2]
[366883838,1750548642725,-257.03499347,0.0002419,2]
[366883839,1750548642734,-500.0,0.0002419,2]
[366883840,1750548642744,-500.0,0.0002419,2]
[366883841,1750548642753,-345.55,0.0002419,2]
[366883842,1750548642763,-541.60994964,0.0002419,2]
[366883843,1750548642773,-448.45093152,0.0002419,2]
[366883844,1750548642786,-460.0,0.0002419,2]
[366883845,1750548642795,-460.0,0.0002419,2]
[366883846,1750548642806,-460.0,0.0002419,2]
[366883847,1750548642816,-460.0,0.0002419,2]
[366883848,1750548642826,-460.0,0.0002419,2]
[366883849,1750548642836,-460.0,0.0002419,2]
[366883850,1750548642846,-460.0,0.0002419,2]
[366883851,1750548642856,-460.0,0.00024191,2]
[366883852,1750548642866,-460.0,0.00024191,2]
[366883853,1750548642876,-443.19396559,0.00024191,2]
[366883854,1750548642886,-460.0,0.00024191,2]
[366883855,1750548642896,-434.91444247,0.00024191,2]
[366883856,1750548642906,-182.06465877,0.00024191,2]
[366883857,1750548642916,-460.0,0.00024191,2]
[366883858,1750548642925,-445.38333478,0.00024191,2]
[366883859,1750548642935,-460.0,0.00024191,2]
[366883860,1750548642944,-444.0968643,0.00024191,2]
[366883861,1750548642954,-460.0,0.00024191,2]
[366883862,1750548642964,-460.0,0.00024191,2]
[366883863,1750548642974,-460.0,0.00024191,2]
[366883864,1750548642984,-460.0,0.00024191,2]
[366883865,1750548642994,-460.0,0.00024191,2]
[366883866,1750548643003,-434.60310905,0.00024191,2]
[366883867,1750548643012,-429.45133224,0.00024191,2]
[366883868,1750548643021,-440.0,0.00024191,2]
[366883869,1750548643032,-580.12473085,0.00024191,2]
[366883870,1750548643041,-460.0,0.00024191,2]
[366883871,1750548643051,-460.0,0.00024191,2]
[366883872,1750548643060,-444.04010613,0.00024191,2]
[366883873,1750548643070,-426.25451626,0.00024191,2]
[366883874,1750548643079,-432.64442935,0.00024191,2]
[366883875,1750548643089,-350.35899809,0.00024191,2]
[366883876,1750548643099,-536.55517407,0.00024191,2]
[366883877,1750548643108,-460.0,0.00024191,2]
[366883878,1750548643118,-316.03045849,0.00024191,2]
[366883879,1750548643127,-460.0,0.00024191,2]
[366883880,1750548643137,-460.0,0.00024191,2]
[366883881,1750548643146,-460.0,0.00024191,2]
[366883882,1750548643155,-460.0,0.00024191,2]
[366883883,1750548643165,-432.35760852,0.00024191,2]
[366883884,1750548643174,-427.64045941,0.00024191,2]
[366883885,1750548643184,-450.54415076,0.00024191,2]
[366883886,1750548643194,-460.0,0.00024191,2]
[366883887,1750548643203,-460.0,0.00024191,2]
[366883888,1750548643213,-435.9063231,0.00024191,2]
[366883889,1750548643222,-464.53432958,0.00024191,2]
[366883890,1750548643231,-460.0,0.00024191,2]
[366883891,1750548643241,-442.78334714,0.00024191,2]
[366883892,1750548643250,-434.28814655,0.00024191,2]
[366883893,1750548643261,-461.51185511,0.00024191,2]
[366883894,1750548643271,-433.86851208,0.00024191,2]
[366883895,1750548643285,-460.0,0.00024191,2]
[366883896,1750548643295,-460.0,0.00024191,2]
[366883897,1750548643305,-460.0,0.00024191,2]
[366883898,1750548643314,-407.76814739,0.00024191,2]
[366883899,1750548643325,-622.51,0.00024191,2]
[366883900,1750548643335,-433.26988717,0.00024191,2]
[366883901,1750548643345,-460.2241421,0.00024191,2]
[366883902,1750548643356,-233.23417175,0.00024191,2]
[366883903,1750548643367,-460.0,0.00024191,2]
[366883904,1750548643377,-460.0,0.00024191,2]
[366883905,1750548643387,-460.0,0.00024191,2]
[366883906,1750548643397,-437.3339768,0.00024191,2]
[366883907,1750548643408,-460.0,0.00024191,2]
[366883908,1750548643417,-339.27967547,0.00024191,2]
[366883909,1750548643428,-460.25764798,0.00024191,2]
[366883910,1750548643438,-460.0,0.00024191,2]
[366883911,1750548643448,-424.22232644,0.00024191,2]
[366883912,1750548643458,-460.0,0.00024191,2]
[366883913,1750548643468,-460.0,0.00024191,2]
[366883914,1750548643478,-460.0,0.00024191,2]
[366883915,1750548643488,-437.58549247,0.00024191,2]
[366883916,1750548643498,-460.66453452,0.00024191,2]
[366883917,1750548643507,-460.0,0.00024191,2]
[366883918,1750548643518,-342.04618298,0.00024191,2]
[366883919,1750548643527,-460.0,0.00024191,2]
[366883920,1750548643609,-426.03708761,0.00024191,2]
[366883921,1750548643627,-460.0,0.00024191,2]
[366883922,1750548643637,-460.0,0.00024191,2]
[366883923,1750548643648,-614.31,0.00024191,2]
[366883924,1750548643658,-460.0,0.00024191,2]
[366883925,1750548643668,-460.0,0.00024191,2]
[366883926,1750548643678,-442.79786375,0.00024191,2]
[366883927,1750548643687,-460.0,0.00024191,2]
[366883928,1750548643697,-266.79445712,0.00024191,2]
[366883929,1750548643707,-460.0,0.00024191,2]
[366883930,1750548643716,-460.0,0.00024191,2]
[366883931,1750548643725,-460.0,0.00024191,2]
[366883932,1750548643735,-460.0,0.00024191,2]
[366883933,1750548643745,-374.10454074,0.00024191,2]
[366883934,1750548643755,-268.0,0.00024196,7]
[366883935,1750548643765,-3716.36563572,0.000242,2]
[366883936,1750548643775,-230.10342898,0.00024245,10]
[366883937,1750548643786,-5000.0,0.00024258,2]
[366883938,1750548643796,-268.0,0.00024343,7]
[366883939,1750548643805,-2239.43963931,0.00024348,11]
[366883940,1750548643815,-854.03227567,0.00024355,2]
[366883941,1750548643825,-500.0,0.00024382,2]
[366883942,1750548643835,-168.0,0.00024382,2]
[366883943,1750548643844,-460.0,0.00024387,2]
[366883944,1750548643854,-9768.31548442,0.00024388,2]
[366883945,1750548643864,-500.0,0.0002439,2]
[366883946,1750548643873,-168.0,0.00024451,2]
[366883947,1750548643883,-460.0,0.00024488,2]
[366883948,1750548643893,-268.0,0.00024489,7]
[366883949,1750548643903,-565.441243,0.0002449,4]
[366883950,1750548643912,-501.37349327,0.000245,30]
[366883951,1750548643922,-150.0,0.000245,2]
[366883952,1750548643931,-1000.0,0.00024521,2]
[366883953,1750548643940,-500.0,0.00024521,2]
[366883954,1750548643950,-1000.0,0.00024521,2]
[366883955,1750548643960,-1000.0,0.00024521,2]
[366883956,1750548643970,-2239.43963931,0.00024521,11]
[366883957,1750548643980,-319.82516346,0.00024552,2]
[366883958,1750548643989,-460.0,0.00024552,2]
[366883959,1750548643999,-460.0,0.00024552,2]
[366883960,1750548644008,-460.0,0.00024552,2]
[366883961,1750548644017,-460.0,0.00024552,2]
[366883962,1750548644027,-460.0,0.00024552,2]
[366883963,1750548644040,-500.0,0.00024552,2]
[366883964,1750548644050,-475.97310664,0.00024552,2]
[366883965,1750548644060,-460.0,0.00024552,2]
[366883966,1750548644069,-460.0,0.00024552,2]
[366883967,1750548644079,-460.0,0.00024552,2]
[366883968,1750548644088,-500.0,0.00024552,2]
[366883969,1750548644098,-460.0,0.00024552,2]
[366883970,1750548644108,-499.68464281,0.00024552,2]
[366883971,1750548644118,-460.0,0.00024552,2]
[366883972,1750548644127,-460.0,0.00024552,2]
[366883973,1750548644136,-460.0,0.00024552,2]
[366883974,1750548644146,-460.0,0.00024552,2]
[366883975,1750548644156,-500.0,0.0002459,2]
[366883976,1750548644165,-160.0,0.00024595,2]
[366883977,1750548644175,-41138.90231736,0.00024598,2]
[366883978,1750548644218,-5356.59452168,0.00024598,2]
[366883982,1750548644274,-460.0,0.00021917,2]
[366883983,1750548644285,-460.0,0.00021917,2]
[366883984,1750548644294,-460.0,0.00021917,2]
[366883986,1750548644304,-460.0,0.00021917,2]
[366883987,1750548644314,-4161.55351963,0.00024598,2]
[366883988,1750548644323,-151.0,0.00024598,7]
[366883989,1750548644333,-151.0,0.000246,9]
[366883991,1750548644343,-151.0,0.000246,6]
[366883993,1750548644354,-460.0,0.00024608,2]
[366883995,1750548644363,-2755.01805343,0.00024609,2]
[366883999,1750548644399,-150.0,0.00019817,2]
[366884000,1750548644409,-2125.29999999,0.00024609,2]
[366884054,1750548646133,-720.691,0.000245,2]
[366884055,1750548646146,-554.234574,0.000245,2]
[366884056,1750548646156,-484.82,0.00024588,10]
[366884057,1750548646166,-4887.997431,0.00024609,2]
[366884058,1750548646175,-424.93363889,0.0002462,2]
[366884059,1750548646185,-160.0,0.00024621,2]
[366884060,1750548646194,-846.23824438,0.00024621,2]
[366884061,1750548646204,-12549.17366507,0.00024621,2]
[366884062,1750548646213,-460.0,0.00024628,2]
[366884063,1750548646223,-460.0,0.00024632,2]
[366884064,1750548646232,-268.0,0.00024636,7]
[366884065,1750548646243,-500.0,0.00024641,2]
[366884066,1750548646251,-223.27935304,0.00024648,2]
[366884067,1750548646263,-460.0,0.00024648,2]
[366884068,1750548646278,-460.0,0.00024648,2]
[366884069,1750548646289,-500.0,0.00024648,2]
[366884070,1750548646299,-500.0,0.00024648,2]
[366884071,1750548646309,-460.0,0.00024648,2]
[366884072,1750548646318,-221.84236874,0.00024648,2]
[366884073,1750548646328,-539.21,0.00024648,2]
[366884074,1750548646337,-460.0,0.00024649,2]
[366884075,1750548646347,-460.0,0.00024649,2]
[366884076,1750548646357,-476.65807402,0.0002465,2]
[366884077,1750548646366,-14581.0,0.0002465,30]
[366884078,1750548646376,-460.0,0.00024652,2]
[366884079,1750548646385,-295.64490805,0.00024653,2]
[366884080,1750548646394,-622.51,0.00024653,2]
[366884081,1750548646403,-460.0,0.00024653,2]
[366884082,1750548646412,-614.31,0.00024653,2]
[366884083,1750548646421,-460.0,0.00024653,2]
[366884084,1750548646430,-460.0,0.00024653,2]
[366884085,1750548646439,-460.0,0.00024653,2]
[366884086,1750548646448,-407.32015109,0.00024654,2]
[366884087,1750548646458,-460.0,0.00024655,2]
[366884088,1750548646467,-460.0,0.00024655,2]
[366884089,1750548646476,-460.0,0.00024655,2]
[366884090,1750548646485,-460.0,0.00024655,2]
[366884091,1750548646494,-460.0,0.00024655,2]
[366884092,1750548646503,-460.0,0.00024655,2]
[366884093,1750548646512,-460.0,0.00024655,2]
[366884094,1750548646522,-460.0,0.00024657,2]
[366884095,1750548646532,-400.0,0.00024658,7]
[366884096,1750548646542,-1000.0,0.00024658,2]
[366884097,1750548646551,-1000.0,0.00024658,2]
[366884098,1750548646561,-633.0,0.00024658,2]
[366884099,1750548646570,-373.31769307,0.00024658,2]
[366884100,1750548646579,-380.0,0.00024658,2]
[366884101,1750548646588,-1000.0,0.00024658,2]
[366884102,1750548646597,-1000.0,0.00024658,2]
[366884103,1750548646607,-21757.44650475,0.00024662,120]
[366884104,1750548648774,-791.03286244,0.00019619,2]
[366884105,1750548649459,175.46257404,0.000222,69]
[366884106,1750548694171,1562.0,0.00023488,120]
[366884107,1750548694605,1562.0,0.00023478,120]
[366884108,1750548695134,1562.0,0.00023468,120]
[366884109,1750548695590,1562.0,0.0002438,120]
[366884110,1750548696026,1562.0,0.0002437,120]
[366884111,1750548696460,1562.0,0.0002436,120]
[366884112,1750548836243,-159.206,0.00019423,2]
[366884115,1750548973924,333.134782,0.00013699,2]
[366884117,1750549023414,5000.0,0.00019102,2]
[366884118,1750549052859,625.0,0.00023925,120]
[366884119,1750549053310,625.0,0.00023915,120]
[366884120,1750549053749,625.0,0.00023905,120]
[366884121,1750549145533,1840.22982684,0.000222,69]
[366884122,1750549150580,1840.22982684,0.000222,69]
[366884123,1750549155581,1840.22982684,0.00022685,71]
[366884126,1750549413299,437.0,0.00022787,120]
[366884127,1750549413752,437.0,0.00022777,120]
[366884128,1750549414220,437.0,0.00022767,120]
[366884132,1750549570294,250.0,0.000213,30]
[366884133,1750549570977,346.895707,0.000193,30]
[366884135,1750549657470,736.09193076,0.000222,69]
[366884136,1750549662452,736.09193073,0.000222,69]
[366884137,1750549667917,736.09193073,0.00022687,71]
[366884138,1750549773978,306.0,0.0002191,120]
[366884139,1750549774310,306.0,0.000219,120]
[366884140,1750549774762,306.0,0.0002189,120]
[366884141,1750549775239,306.0,0.00024646,120]
[366884142,1750549775669,306.0,0.00024636,120]
[366884143,1750549776116,306.0,0.00024626,120]
[366884539,1750549838910,-505.0,0.00019588,2]
[366884544,1750549839082,-4495.0,0.00019588,2]
[366884546,1750549839092,-333.134782,0.00020187,2]
[366884547,1750549839103,-166.239334,0.0002028,2]
[366884548,1750549839112,-118.65474669,0.00020493,2]
[366884549,1750549839140,-56.34893747,0.00020493,2]
[366884550,1750549839150,-1447.8518028,0.00020583,2]
[366884551,1750549839159,-255.0,0.0002081,2]
[366884552,1750549839169,-153.34192971,0.00020815,2]
[366884553,1750549839178,-303.4856341,0.00020837,2]
[366884554,1750549839187,-160.0,0.00021,2]
[366884555,1750549839196,-300.0,0.00021299,2]
[366884556,1750549839206,-300.0,0.00021299,2]
[366884557,1750549839215,-4032.59385921,0.000213,5]
[366884558,1750549839224,-4032.59385907,0.000213,5]
[366884559,1750549839234,-4032.59385907,0.000213,5]
[366884560,1750549839243,-4032.59385907,0.00021417,5]
[366884561,1750549839252,-168.0,0.00021425,2]
[366884562,1750549839261,-4032.59385907,0.0002159,5]
[366884563,1750549839270,-764.9644688,0.00021716,2]
[366884564,1750549839279,-4032.59385907,0.00021762,5]
[366884565,1750549839288,-212.21359062,0.00021815,2]
[366884566,1750549839298,-7814.65238756,0.00021817,2]
[366884567,1750549839307,-13078.76132377,0.00021817,2]
[366884568,1750549839316,-517.62656456,0.00021906,2]